bitfinex/quotes_BTCUSD_20250408
["timestamp","ask_amount","ask_price","bid_price","bid_amount"]
[1744124824426,0.01144361,78537.0,78536.0,0.13899164]
[1744124825167,0.01144361,78538.0,78534.0,0.254666]
[1744124825418,0.001,78537.0,78536.0,0.008]
[1744124825659,0.01918386,78537.0,78519.0,0.012735]
[1744124825860,0.012735,78520.0,78512.0,0.4]
[1744124826079,0.012735,78523.0,78512.0,0.4]
[1744124826080,0.34,78513.0,78512.0,0.4]
[1744124826484,0.34,78512.0,78510.0,0.26748]
[1744124826693,0.34,78508.0,78507.0,1e-07]
[1744124826843,0.352737,78508.0,78507.0,1e-07]
[1744124827057,0.35918886,78508.0,78507.0,1e-07]
[1744124827262,0.36927647,78508.0,78507.0,1e-07]
[1744124827487,0.40257999,78508.0,78507.0,1e-07]
[1744124827692,0.40270588,78508.0,78507.0,1e-07]
[1744124828092,0.06270588,78508.0,78507.0,1e-07]
[1744124828843,0.04996888,78508.0,78507.0,1e-07]
[1744124829164,0.05296888,78508.0,78507.0,0.0030001]
[1744124829610,0.05296888,78508.0,78507.0,0.2704911]
[1744124829814,0.0145695,78508.0,78507.0,1e-07]
[1744124830208,0.02087203,78508.0,78507.0,0.2674911]
[1744124830409,0.02087203,78508.0,78507.0,1e-07]
[1744124830606,0.69032514,78508.0,78507.0,1e-07]
[1744124830827,0.51944935,78508.0,78507.0,0.0030001]
[1744124831045,0.06329431,78508.0,78507.0,0.0030001]
[1744124831204,0.12269611,78509.0,78507.0,0.0030001]
[1744124831409,0.01783404,78508.0,78507.0,0.00341852]
[1744124831608,0.00609704,78508.0,78507.0,0.01615552]
[1744124831853,0.00609704,78508.0,78507.0,0.25817252]
[1744124832090,0.001,78508.0,78507.0,0.00341852]
[1744124832244,0.26747,78514.0,78507.0,0.00341852]
[1744124832424,0.00509019,78508.0,78507.0,0.00041852]
[1744124832639,0.001,78509.0,78507.0,0.25517152]
[1744124832839,0.001,78509.0,78508.0,0.012737]
[1744124833422,0.001,78509.0,78507.0,0.00041852]
[1744124833624,0.001,78509.0,78507.0,0.25517052]
[1744124833868,0.34,78508.0,78507.0,0.00041852]
[1744124834072,0.353737,78508.0,78507.0,0.00041852]
[1744124834245,0.267511,78501.0,78485.0,0.012741]
[1744124834443,0.607511,78501.0,78492.0,0.254802]
[1744124834672,0.607511,78501.0,78489.0,0.304812]
[1744124834875,0.607511,78501.0,78489.0,0.05]
[1744124835082,0.34,78501.0,78500.0,0.30734578]
[1744124835281,0.03274643,78507.0,78506.0,0.267494]
[1744124836076,0.03274643,78507.0,78506.0,0.681894]
[1744124836445,0.03274643,78507.0,78506.0,0.80815264]
[1744124836805,0.00042049,78508.0,78506.0,0.80815264]
[1744124836806,9.2e-07,78508.0,78507.0,0.012737]
[1744124837149,0.5653752,78560.0,78557.0,0.012729]
[1744124837270,0.306453,78569.0,78564.0,0.012728]
[1744124837271,0.002,78569.0,78564.0,0.012728]
[1744124837470,0.00212624,78569.0,78568.0,0.254556]
[1744124837672,0.254598,78556.0,78548.0,0.254618]
[1744124837876,0.34,78557.0,78548.0,0.012731]
[1744124838075,0.012732,78542.0,78531.0,0.012733]
[1744124838361,0.012733,78533.0,78528.0,0.254686]
[1744124838670,0.012734,78528.0,78521.0,0.012735]
[1744124838832,0.34,78530.0,78523.0,0.012735]
[1744124838992,0.352734,78527.0,78521.0,0.267442]
[1744124839199,0.012733,78533.0,78526.0,0.012734]
[1744124839403,0.56635644,78531.0,78504.0,0.012738]
[1744124839650,0.012734,78527.0,78521.0,0.012735]
[1744124839849,0.34,78520.0,78519.0,0.26745]
[1744124840258,0.56635644,78540.0,78532.0,0.267406]
[1744124840414,0.012732,78538.0,78532.0,0.254673]
[1744124840625,0.82100444,78540.0,78532.0,0.012733]
[1744124840976,0.34,78531.0,78525.0,0.254693]
[1744124841180,0.00012615,78533.0,78521.0,0.254708]
[1744124841381,0.00012615,78533.0,78532.0,0.267406]
[1744124841590,0.00012615,78533.0,78527.0,0.254686]
[1744124841792,0.00012615,78533.0,78528.0,0.254684]
[1744124841960,0.00212615,78533.0,78529.0,0.012734]
[1744124842203,0.00212615,78533.0,78532.0,0.012733]
[1744124842405,1.5e-07,78533.0,78532.0,0.14153808]
[1744124842613,1.5e-07,78533.0,78532.0,0.60663808]
[1744124842792,0.254541,78573.0,78568.0,0.267283]
[1744124843006,0.352727,78567.0,78560.0,0.267311]
[1744124843253,0.00212615,78569.0,78568.0,0.012727]
[1744124843535,0.00212615,78569.0,78568.0,0.01527236]
[1744124843692,0.00212615,78569.0,78568.0,0.012727]
[1744124843906,0.00212615,78569.0,78564.0,0.254559]
[1744124843907,0.012729,78560.0,78554.0,0.267329]
[1744124844099,0.34,78567.0,78560.0,0.012729]
[1744124844100,0.352727,78567.0,78560.0,0.012729]
[1744124844324,0.34,78567.0,78566.0,0.012728]
[1744124845082,0.00212615,78569.0,78568.0,0.012727]
[1744124845285,0.00212615,78569.0,78568.0,0.13898564]
[1744124845688,0.012727,78567.0,78566.0,0.003]
[1744124845813,0.34,78568.0,78566.0,0.003]
[1744124846008,0.34,78568.0,78567.0,0.012727]
[1744124846611,0.34,78568.0,78566.0,0.003]
[1744124846852,0.34,78568.0,78566.0,0.267289]
[1744124847027,0.34,78568.0,78563.0,0.012728]
[1744124847229,0.00212615,78569.0,78567.0,0.003]
[1744124847430,0.00212615,78569.0,78567.0,0.257557]
[1744124847770,0.00212615,78569.0,78567.0,0.003]
[1744124847946,0.012727,78568.0,78566.0,0.003]
[1744124848133,0.59668015,78569.0,78566.0,0.003]
[1744124848337,0.59668015,78569.0,78563.0,0.002]
[1744124848338,0.607297,78564.0,78563.0,0.002]
[1744124848737,0.34,78564.0,78563.0,0.014728]
[1744124848941,0.00212615,78569.0,78563.0,0.014728]
[1744124849146,0.00212615,78569.0,78568.0,0.267283]
[1744124849938,0.00212615,78569.0,78567.0,0.254559]
[1744124850148,0.012729,78559.0,78550.0,0.267344]
[1744124850341,0.012729,78559.0,78557.0,0.25459]
[1744124850342,0.34,78559.0,78557.0,0.25459]
[1744124850547,0.34,78559.0,78558.0,0.012729]
[1744124851383,0.53716615,78569.0,78568.0,0.267283]
[1744124851590,0.34212615,78569.0,78568.0,0.267283]
[1744124852189,0.00212615,78569.0,78568.0,0.267283]
[1744124852591,0.00212615,78569.0,78567.0,0.254559]
[1744124853064,0.00212615,78569.0,78568.0,0.012727]
[1744124854420,0.00212615,78569.0,78568.0,0.55593091]
[1744124854632,0.00212615,78569.0,78568.0,0.55338564]
[1744124854840,0.00212615,78569.0,78568.0,0.427127]
[1744124855042,0.00212615,78569.0,78568.0,0.681683]
[1744124855507,0.00212615,78569.0,78568.0,0.690683]
[1744124855958,0.00212615,78569.0,78568.0,0.681683]
[1744124856377,0.00212615,78569.0,78568.0,0.668956]
[1744124856578,0.34,78568.0,78560.0,0.012729]
[1744124856816,0.34,78568.0,78565.0,0.254563]
[1744124856984,0.34,78568.0,78566.0,0.254561]
[1744124857203,0.00212615,78569.0,78568.0,0.254556]
[1744124857409,0.00212615,78569.0,78568.0,0.272283]
[1744124857612,0.00212615,78569.0,78568.0,0.269283]
[1744124857812,0.00212615,78569.0,78568.0,0.267283]
[1744124858437,0.267296,78565.0,78560.0,0.254582]
[1744124858647,0.267287,78567.0,78562.0,0.267304]
[1744124858843,0.00212615,78569.0,78566.0,0.254563]
[1744124859103,0.00212615,78569.0,78568.0,0.003]
[1744124859240,0.26940615,78569.0,78568.0,0.003]
[1744124859426,0.39566479,78569.0,78568.0,0.003]
[1744124859623,0.254656,78538.0,78533.0,0.4144]
[1744124859827,0.012731,78546.0,78543.0,0.254636]
[1744124860099,0.254619,78549.0,78546.0,0.267358]
[1744124860264,0.01273,78549.0,78543.0,0.012731]
[1744124860469,0.254663,78535.0,78530.0,0.267409]
[1744124860670,0.254663,78535.0,78527.0,0.012734]
[1744124860671,0.56635644,78540.0,78529.0,0.012734]
[1744124860836,0.254653,78538.0,78534.0,0.254666]
[1744124861038,0.82100944,78540.0,78533.0,0.009]
[1744124861328,0.56635644,78540.0,78536.0,0.254659]
[1744124861478,0.352729,78556.0,78551.0,0.254608]
[1744124861651,0.34,78552.0,78550.0,0.254614]
[1744124861857,0.594608,78552.0,78547.0,0.254622]
[1744124862227,0.254622,78548.0,78541.0,0.012732]
[1744124862426,0.34,78545.0,78540.0,0.012732]
[1744124862630,0.34,78545.0,78542.0,0.25464]
[1744124862847,0.594632,78545.0,78542.0,0.25464]
[1744124863032,0.34,78545.0,78543.0,0.254634]
[1744124863252,0.34,78545.0,78543.0,0.267365]
[1744124863412,0.34,78542.0,78541.0,0.254644]
[1744124863579,0.34,78542.0,78541.0,0.267376]
[1744124863787,0.34,78542.0,78531.0,0.012733]
[1744124863788,0.012732,78539.0,78531.0,0.012733]
[1744124863987,0.34,78530.0,78522.0,0.012735]
[1744124864192,0.34,78530.0,78529.0,0.681816]
[1744124865123,0.34,78530.0,78529.0,0.688816]
[1744124865538,0.56635644,78550.0,78540.0,0.012732]
[1744124865879,0.34,78550.0,78548.0,0.267346]
[1744124866195,0.34,78550.0,78549.0,0.01273]
[1744124866410,0.34,78550.0,78540.0,0.012732]
[1744124866411,1.0086,78557.0,78541.0,0.001]
[1744124866573,0.59464,78542.0,78541.0,0.001]
[1744124866777,0.59464,78542.0,78529.0,0.007]
[1744124866778,0.34,78530.0,78529.0,0.007]
[1744124867176,0.594682,78530.0,78527.0,0.254689]
[1744124867378,0.34,78528.0,78526.0,0.254691]
[1744124867578,0.012733,78530.0,78525.0,0.254692]
[1744124867783,0.012729,78558.0,78537.0,0.254657]
[1744124867970,0.012731,78548.0,78542.0,0.012732]
[1744124868169,0.34,78536.0,78534.0,0.254665]
[1744124868389,0.34,78536.0,78533.0,0.254669]
[1744124868662,0.56635644,78550.0,78546.0,0.254624]
[1744124868829,0.01454085,78572.0,78546.0,0.254624]
[1744124868830,0.56635644,78560.0,78554.0,0.254601]
[1744124869034,0.254611,78551.0,78542.0,0.012732]
[1744124869229,0.34,78549.0,78546.0,0.254624]
[1744124869592,0.254598,78555.0,78546.0,0.254624]
[1744124869593,0.012728,78562.0,78555.0,0.267327]
[1744124869789,0.207729,78556.0,78549.0,0.01273]
[1744124869993,0.267327,78555.0,78550.0,0.01273]
[1744124870192,0.34,78555.0,78553.0,0.254603]
[1744124870440,0.34,78555.0,78552.0,0.01273]
[1744124870441,0.594599,78555.0,78552.0,0.254607]
[1744124870642,0.34,78555.0,78553.0,0.254604]
[1744124870852,0.34,78555.0,78553.0,0.267334]
[1744124871068,0.34,78555.0,78554.0,0.254601]
[1744124871248,0.344,78555.0,78554.0,0.254601]
[1744124871712,0.34,78555.0,78554.0,0.254601]
[1744124871907,0.341,78555.0,78553.0,0.254604]
[1744124872134,0.341,78555.0,78553.0,0.254601]
[1744124872378,0.001,78555.0,78554.0,0.267331]
[1744124873300,0.002,78555.0,78554.0,0.267331]
[1744124873443,0.34,78563.0,78562.0,0.254576]
[1744124873634,0.00930318,78563.0,78562.0,0.39356264]
[1744124874078,0.00012615,78563.0,78562.0,0.267304]
[1744124874790,0.00012615,78563.0,78562.0,0.273304]
[1744124875203,0.00012615,78563.0,78562.0,0.39756264]
[1744124875430,0.00012615,78563.0,78562.0,0.81196264]
[1744124875605,0.00012615,78563.0,78562.0,0.689704]
[1744124877018,0.00012615,78563.0,78562.0,0.4224]
[1744124877217,0.34012615,78563.0,78562.0,0.4224]
[1744124877443,0.34012615,78563.0,78562.0,0.689704]
[1744124877794,0.34012615,78563.0,78562.0,0.81196264]
[1744124878211,0.34012615,78563.0,78562.0,0.80996264]
[1744124878576,0.34012615,78563.0,78562.0,0.80796264]
[1744124878955,0.34930444,78563.0,78562.0,0.4144]
[1744124879105,0.60387644,78563.0,78562.0,0.4144]
[1744124879316,0.34,78560.0,78558.0,0.254588]
[1744124879671,0.34,78560.0,78559.0,0.267314]
[1744124879890,0.00012615,78563.0,78562.0,0.267304]
[1744124880089,0.00012615,78563.0,78562.0,0.004]
[1744124880090,0.25469815,78563.0,78562.0,0.004]
[1744124880292,0.60742615,78563.0,78562.0,0.005]
[1744124880473,0.60742615,78563.0,78562.0,0.001]
[1744124880644,0.34,78551.0,78547.0,0.254624]
[1744124881066,0.34,78551.0,78550.0,0.254614]
[1744124881274,0.34,78551.0,78548.0,0.254619]
[1744124881636,0.254608,78554.0,78547.0,0.012731]
[1744124881834,0.34,78554.0,78550.0,0.254613]
[1744124882091,0.34,78554.0,78549.0,0.01273]
[1744124882294,0.00112615,78563.0,78562.0,0.254576]
[1744124882559,0.00112615,78563.0,78562.0,0.267304]
[1744124882804,0.00012615,78563.0,78562.0,0.39356264]
[1744124882932,0.00012615,78563.0,78560.0,0.254582]
[1744124883138,0.00012615,78563.0,78555.0,0.012729]
[1744124883346,0.254621,78548.0,78541.0,0.4144]
[1744124883541,0.607372,78542.0,78541.0,0.4144]
[1744124883790,0.01273,78551.0,78526.0,0.23688]
[1744124883791,0.267399,78534.0,78533.0,0.4144]
[1744124883992,0.34,78538.0,78536.0,0.254658]
[1744124884193,0.34,78538.0,78537.0,0.012732]
[1744124884677,0.34,78538.0,78535.0,0.267393]
[1744124884678,0.34,78538.0,78535.0,0.25466]
[1744124884864,0.34,78538.0,78537.0,0.012732]
[1744124885168,0.34,78549.0,78546.0,0.267358]
[1744124885329,0.34,78549.0,78545.0,0.012731]
[1744124885542,0.012729,78556.0,78533.0,0.4144]
[1744124885543,0.34,78534.0,78533.0,0.4144]
[1744124885753,0.34,78534.0,78533.0,0.427133]
[1744124886119,0.34,78534.0,78533.0,0.432133]
[1744124886361,0.34,78534.0,78533.0,0.4144]
[1744124886737,0.012732,78542.0,78538.0,0.012732]
[1744124886738,0.34,78542.0,78538.0,0.012732]
[1744124886919,0.00919168,78541.0,78538.0,0.012732]
[1744124887117,0.00919168,78541.0,78539.0,0.254649]
[1744124887427,0.00919168,78541.0,78540.0,0.012732]
[1744124887797,0.00919168,78541.0,78539.0,0.254649]
[1744124888222,0.254647,78540.0,78532.0,0.267404]
[1744124888378,0.012733,78531.0,78523.0,0.012735]
[1744124888580,0.34,78530.0,78527.0,0.254688]
[1744124888788,0.012735,78521.0,78518.0,0.00012615]
[1744124889011,0.34,78519.0,78518.0,0.00012615]
[1744124889210,0.352735,78519.0,78518.0,0.00012615]
[1744124889430,0.34919168,78519.0,78518.0,0.00012615]
[1744124889987,0.00919168,78519.0,78518.0,0.00012615]
[1744124890188,0.02192668,78519.0,78518.0,0.00012615]
[1744124891031,0.02192668,78519.0,78518.0,0.00312615]
[1744124891351,0.02192668,78519.0,78518.0,0.00512615]
[1744124891504,0.14818532,78519.0,78518.0,0.00512615]
[1744124891706,0.19638532,78519.0,78518.0,0.00512615]
[1744124891910,0.607508,78502.0,78501.0,0.000168]
[1744124892115,0.797028,78502.0,78501.0,0.000168]
[1744124892750,0.93247832,78502.0,78501.0,0.000168]
[1744124893101,0.94701917,78502.0,78501.0,0.000168]
[1744124893695,0.94801917,78502.0,78501.0,0.000168]
[1744124893879,0.267543,78492.0,78491.0,0.00016878]
[1744124894084,0.74299332,78492.0,78491.0,0.00058927]
[1744124894464,0.53875168,78492.0,78491.0,0.00058927]
[1744124894666,0.5423,78492.0,78491.0,0.00058927]
[1744124895314,0.66855864,78492.0,78491.0,0.00058927]
[1744124895463,0.5423,78492.0,78491.0,0.00158927]
[1744124896225,0.5443,78492.0,78491.0,0.00158927]
[1744124896424,0.594803,78492.0,78491.0,0.00158927]
[1744124896624,0.607543,78492.0,78491.0,0.00158927]
[1744124896836,0.611543,78492.0,78491.0,0.00158927]
[1744124896994,0.607543,78492.0,78491.0,0.00158927]
[1744124897196,0.607543,78492.0,78491.0,0.00058927]
[1744124897400,0.611543,78492.0,78491.0,0.00058927]
[1744124897737,0.607543,78492.0,78491.0,0.00058927]
[1744124898033,0.800143,78492.0,78491.0,0.00058927]
[1744124898464,0.797143,78492.0,78491.0,0.00058927]
[1744124898834,0.799143,78492.0,78491.0,0.00058927]
[1744124899648,0.801143,78492.0,78491.0,0.00058927]
[1744124901570,0.5336,78492.0,78491.0,0.00058927]
[1744124901923,0.5336,78492.0,78491.0,0.01332927]
[1744124902095,0.5336,78492.0,78491.0,0.00058927]
[1744124902523,0.54634,78492.0,78491.0,0.00058927]
[1744124905458,0.801143,78492.0,78491.0,0.00058927]
[1744124906275,0.461143,78492.0,78491.0,0.00058927]
[1744124906912,0.1936,78492.0,78491.0,0.26813527]
[1744124907595,0.004,78492.0,78491.0,0.26813527]
[1744124907801,0.269543,78492.0,78491.0,0.00058927]
[1744124908162,0.270543,78492.0,78491.0,0.00058927]
[1744124909049,0.39480164,78492.0,78491.0,0.00058927]
[1744124909250,0.39580164,78492.0,78491.0,0.00058927]
[1744124909452,0.40493017,78492.0,78491.0,0.00058927]
[1744124909659,0.75947102,78492.0,78491.0,0.00058927]
[1744124910076,0.607549,78490.0,78489.0,0.05]
[1744124910331,0.012742,78476.0,78468.0,0.0001681]
[1744124910483,1.94443549,78476.0,78468.0,0.0001681]
[1744124910646,0.60762,78469.0,78468.0,0.0001681]
[1744124910843,1.20532013,78469.0,78468.0,0.0001681]
[1744124911045,1.18074998,78469.0,78468.0,0.0001681]
[1744124911254,1.16620913,78469.0,78468.0,0.0001681]
[1744124911454,1.03995049,78469.0,78468.0,0.0001681]
[1744124911678,0.62815049,78469.0,78468.0,0.0001681]
[1744124911877,0.75440913,78469.0,78468.0,0.0001681]
[1744124912416,0.34912853,78469.0,78468.0,0.0001681]
[1744124912674,0.20835153,78469.0,78468.0,0.0001681]
[1744124912887,0.20835153,78469.0,78468.0,0.0129121]
[1744124912888,0.00912853,78469.0,78468.0,0.0129121]
[1744124913080,0.01512853,78469.0,78468.0,0.0139121]
[1744124913343,0.006,78469.0,78468.0,0.0011681]
[1744124913580,0.205223,78469.0,78468.0,0.0011681]
[1744124913813,0.211223,78469.0,78468.0,0.0021681]
[1744124914064,0.199223,78469.0,78468.0,0.0011681]
[1744124914295,0.20836477,78469.0,78468.0,0.0011681]
[1744124914530,0.55979209,78469.0,78468.0,0.0001681]
[1744124914993,0.38031209,78469.0,78468.0,0.0011681]
[1744124915485,0.21404909,78469.0,78468.0,0.0011681]
[1744124915703,0.21404909,78469.0,78468.0,0.0021681]
[1744124915926,0.21404909,78469.0,78468.0,0.2560481]
[1744124916097,0.20704909,78469.0,78468.0,0.0001681]
[1744124916296,0.56479209,78469.0,78468.0,0.0011681]
[1744124916598,0.57079209,78469.0,78468.0,0.0021681]
[1744124917056,0.57079209,78469.0,78468.0,0.0001681]
[1744124917057,0.55979209,78469.0,78468.0,0.0001681]
[1744124917278,0.56579209,78469.0,78468.0,0.0011681]
[1744124917501,0.57079209,78469.0,78468.0,0.0011681]
[1744124917699,0.56579209,78469.0,78468.0,0.0011681]
[1744124918132,0.352744,78468.0,78467.0,1e-07]
[1744124918360,0.74842349,78468.0,78467.0,1e-07]
[1744124918537,0.75985081,78468.0,78467.0,1e-07]
[1744124918673,0.76899258,78468.0,78467.0,1e-07]
[1744124918881,0.012746,78451.0,78450.0,5.4e-07]
[1744124919101,0.92042064,78451.0,78450.0,5.4e-07]
[1744124919310,0.94098973,78451.0,78450.0,5.4e-07]
[1744124919518,0.9414097,78451.0,78450.0,5.4e-07]
[1744124920196,0.9434097,78451.0,78450.0,5.4e-07]
[1744124920401,0.81815106,78451.0,78450.0,5.4e-07]
[1744124921233,0.9444097,78451.0,78450.0,5.4e-07]
[1744124921874,0.93298238,78451.0,78450.0,5.4e-07]
[1744124922429,0.35256174,78451.0,78450.0,5.4e-07]
[1744124922635,0.80676374,78451.0,78450.0,5.4e-07]
[1744124922820,0.80680374,78451.0,78450.0,5.4e-07]
[1744124923226,0.19912174,78451.0,78450.0,0.26768554]
[1744124923640,0.19912174,78451.0,78450.0,5.4e-07]
[1744124923838,0.02402866,78451.0,78450.0,5.4e-07]
[1744124924040,0.02302866,78451.0,78450.0,0.25493954]
[1744124924248,0.02302866,78451.0,78450.0,0.26768554]
[1744124924454,0.02302866,78451.0,78450.0,5.4e-07]
[1744124924736,0.63071066,78451.0,78450.0,5.4e-07]
[1744124925018,0.81727066,78451.0,78450.0,5.4e-07]
[1744124925263,0.9435293,78451.0,78450.0,5.4e-07]
[1744124925405,0.9415293,78451.0,78450.0,5.4e-07]
[1744124925613,0.34,78445.0,78444.0,0.05]
[1744124925791,0.52656,78445.0,78444.0,0.05]
[1744124925977,0.794262,78445.0,78444.0,0.05]
[1744124926175,0.80340377,78445.0,78444.0,0.05]
[1744124926544,0.81487069,78445.0,78444.0,0.05]
[1744124927087,0.81487069,78445.0,78444.0,0.053]
[1744124927966,0.27556369,78445.0,78444.0,0.053]
[1744124928301,0.02060869,78445.0,78444.0,0.17925864]
[1744124928505,0.254944,78449.0,78444.0,0.43421664]
[1744124928751,0.21550024,78450.0,78449.0,0.012747]
[1744124928920,0.21550024,78450.0,78449.0,0.55340564]
[1744124930396,0.21650024,78450.0,78449.0,0.55940564]
[1744124930597,0.21650024,78450.0,78449.0,0.56040564]
[1744124930914,0.21650024,78450.0,78449.0,0.54765864]
[1744124931122,0.21650024,78450.0,78449.0,0.4214]
[1744124931521,0.22924624,78450.0,78449.0,0.007]
[1744124931749,0.267702,78445.0,78444.0,0.05]
[1744124931883,0.34,78445.0,78444.0,0.05]
[1744124932480,0.3491871,78445.0,78444.0,0.05]
[1744124932925,0.3491871,78445.0,78444.0,0.053]
[1744124933326,0.3491871,78445.0,78444.0,0.051]
[1744124933327,0.3619341,78445.0,78444.0,0.051]
[1744124933788,0.3619341,78445.0,78444.0,0.052]
[1744124934412,0.6168891,78445.0,78444.0,0.052]
[1744124936073,0.0091871,78445.0,78444.0,0.064747]
[1744124936311,0.0091871,78449.0,78448.0,0.267692]
[1744124937538,0.0091871,78449.0,78448.0,0.254945]
[1744124937734,0.0091871,78449.0,78447.0,0.012747]
[1744124937954,0.0091871,78449.0,78448.0,0.267692]
[1744124938509,0.0111871,78449.0,78448.0,0.267692]
[1744124938630,0.0101871,78449.0,78448.0,0.39395064]
[1744124938836,0.001,78449.0,78448.0,0.39395064]
[1744124939039,0.254952,78446.0,78445.0,0.4144]
[1744124939238,0.254948,78448.0,78445.0,0.4144]
[1744124939443,0.001,78449.0,78445.0,0.427147]
[1744124939634,0.00921259,78449.0,78448.0,0.255945]
[1744124940094,0.00921259,78449.0,78448.0,0.268692]
[1744124940247,0.00921259,78449.0,78448.0,0.271692]
[1744124940701,0.00921259,78449.0,78448.0,0.004]
[1744124941084,0.00921259,78449.0,78448.0,0.27324133]
[1744124941281,0.00921259,78449.0,78448.0,0.81135064]
[1744124941468,0.00041997,78451.0,78450.0,0.267685]
[1744124941672,0.00041997,78451.0,78450.0,0.05218476]
[1744124941882,0.00041997,78451.0,78450.0,0.1784434]
[1744124942504,0.00041997,78451.0,78450.0,0.1911894]
[1744124942909,0.00041997,78451.0,78450.0,0.1941894]
[1744124943144,0.00041997,78451.0,78450.0,0.1961894]
[1744124943672,0.00041997,78451.0,78450.0,0.005]
[1744124943871,0.00041997,78451.0,78450.0,0.259939]
[1744124944226,0.00041997,78451.0,78450.0,0.272685]
[1744124944666,0.00041997,78451.0,78450.0,0.008]
[1744124944890,0.00041997,78451.0,78450.0,0.27323411]
[1744124945065,0.00041997,78451.0,78450.0,0.273685]
[1744124945467,0.00041997,78451.0,78450.0,0.44554364]
[1744124945738,9.7e-07,78451.0,78450.0,0.86394364]
[1744124946657,0.1844958,78483.0,78475.0,0.2676]
[1744124946873,0.0003358,78483.0,78482.0,0.254835]
[1744124947088,0.254845,78479.0,78475.0,0.12625864]
[1744124947239,0.00924149,78482.0,78480.0,0.254841]
[1744124947446,0.2551698,78483.0,78479.0,0.254845]
[1744124947652,0.00923766,78482.0,78479.0,0.254845]
[1744124948036,0.607583,78480.0,78479.0,0.00012589]
[1744124948440,0.77894228,78480.0,78479.0,0.00012589]
[1744124948649,0.7430793,78480.0,78479.0,0.00012589]
[1744124949265,0.61682066,78480.0,78479.0,0.00012589]
[1744124950111,0.60407866,78480.0,78479.0,0.00012589]
[1744124950341,0.61682066,78480.0,78479.0,0.00012589]
[1744124951027,0.61982066,78480.0,78479.0,0.00012589]
[1744124951479,0.61882066,78480.0,78479.0,0.00012589]
[1744124951666,0.61982066,78480.0,78479.0,0.00012589]
[1744124952089,0.61982066,78480.0,78479.0,8.9e-07]
[1744124952090,0.84077994,78480.0,78479.0,8.9e-07]
[1744124952288,0.85232079,78480.0,78479.0,8.9e-07]
[1744124952464,0.85532079,78480.0,78479.0,8.9e-07]
[1744124953293,1.26712079,78480.0,78479.0,8.9e-07]
[1744124953521,0.607702,78445.0,78439.0,0.0001678]
[1744124954461,0.7431983,78445.0,78439.0,0.0001678]
[1744124954657,0.36728785,78444.0,78443.0,4e-07]
[1744124954968,0.53864713,78444.0,78443.0,4e-07]
[1744124955373,0.62225985,78440.0,78439.0,2e-07]
[1744124955623,0.607733,78436.0,78432.0,4e-07]
[1744124955827,0.607774,78424.0,78423.0,0.0019924]
[1744124956069,1.97341328,78424.0,78423.0,0.0019924]
[1744124956259,1.82455727,78424.0,78423.0,0.0019924]
[1744124956458,1.66107393,78424.0,78423.0,0.0019924]
[1744124956632,1.79147244,78424.0,78423.0,0.0019924]
[1744124957020,1.79847244,78424.0,78423.0,0.0029924]
[1744124957601,1.60370441,78424.0,78423.0,0.0029924]
[1744124958004,1.59095341,78424.0,78423.0,0.0029924]
[1744124958264,1.40891341,78424.0,78423.0,0.2717704]
[1744124958424,1.58271575,78424.0,78423.0,0.0029924]
[1744124958619,1.55968548,78424.0,78423.0,0.0029924]
[1744124958847,1.36864548,78424.0,78423.0,0.0029924]
[1744124959208,1.36164548,78424.0,78423.0,0.0019924]
[1744124959405,1.36164548,78424.0,78423.0,0.0029924]
[1744124959629,1.02164548,78424.0,78423.0,0.0019924]
[1744124960008,1.21472548,78424.0,78423.0,0.0019924]
[1744124960205,1.22447648,78424.0,78423.0,0.0019924]
[1744124960668,1.24590548,78424.0,78423.0,0.0019924]
[1744124961210,1.25665648,78424.0,78423.0,0.0019924]
[1744124961387,1.25965648,78424.0,78423.0,0.0019924]
[1744124961738,1.26065648,78424.0,78423.0,0.0019924]
[1744124961938,1.24790548,78424.0,78423.0,0.0019924]
[1744124962455,1.24171179,78424.0,78423.0,0.0019924]
[1744124962650,1.21872548,78424.0,78423.0,0.0019924]
[1744124963059,1.21472548,78424.0,78423.0,0.2570194]
[1744124963303,1.21472548,78424.0,78423.0,0.0019924]
[1744124963304,1.2032,78424.0,78423.0,0.0019924]
[1744124963502,1.460223,78424.0,78423.0,0.0019924]
[1744124963701,1.469974,78424.0,78423.0,0.0019924]
[1744124963933,1.48116064,78424.0,78423.0,0.0019924]
[1744124964146,1.49264364,78424.0,78423.0,0.0019924]
[1744124964334,1.23762064,78424.0,78423.0,0.0019924]
[1744124964535,1.22286964,78424.0,78423.0,0.0019924]
[1744124964698,1.22386964,78424.0,78423.0,0.2697704]
[1744124965104,1.01312,78424.0,78423.0,0.2697704]
[1744124965305,0.003,78424.0,78423.0,0.39602904]
[1744124965610,0.60849162,78440.0,78432.0,0.012749]
[1744124965611,0.34918537,78439.0,78432.0,0.012749]
[1744124965815,0.34918537,78439.0,78429.0,0.267754]
[1744124965958,0.34918537,78439.0,78431.0,0.01275]
[1744124966165,0.002,78424.0,78423.0,0.0019924]
[1744124966576,0.34,78432.0,78424.0,0.267774]
[1744124966770,0.34,78432.0,78425.0,0.267768]
[1744124966977,0.25497,78441.0,78425.0,0.267768]
[1744124966978,0.34,78439.0,78431.0,0.01275]
[1744124967366,0.34,78436.0,78429.0,0.255006]
[1744124967564,0.34,78436.0,78432.0,0.254996]
[1744124967763,0.004,78432.0,78429.0,0.12625864]
[1744124967967,0.004,78432.0,78421.0,0.255031]
[1744124968167,0.004,78432.0,78427.0,0.01275]
[1744124968416,0.75841162,78433.0,78432.0,0.001]
[1744124968609,0.34,78433.0,78428.0,0.01275]
[1744124968809,0.34,78433.0,78426.0,0.255015]
[1744124968933,0.002,78432.0,78425.0,0.012751]
[1744124969140,0.002,78432.0,78426.0,0.255017]
[1744124969541,0.34,78433.0,78427.0,0.13900864]
[1744124969710,0.003,78433.0,78427.0,0.12625864]
[1744124969917,0.255,78432.0,78424.0,0.267774]
[1744124970125,0.01275,78429.0,78423.0,0.0019924]
[1744124970303,0.255022,78425.0,78423.0,0.0019924]
[1744124970508,0.012751,78424.0,78423.0,0.0019924]
[1744124971708,0.01553496,78429.0,78428.0,0.26776]